[Event "Fagernes Chess GM-Swiss 2025"]
[Site "Fagernes"]
[Date "2025.04.17"]
[Round "6.25"]
[White "Andersen, Morten"]
[Black "Holand, Per Fredrik"]
[Result "1/2-1/2"]
[Annotator "RC"]
[ECO "B14"]
[WhiteElo "2200"]
[BlackElo "2070"]
[PlyCount "43"]
[EventDate "2025.04.12"]
[EventCountry "NOR"]
[SourceTitle "playchess.com"]
[Source "ChessBase"]
[SourceQuality "1"]
[TimeControl "40/6000+30:2400+30"]

1. Nf3 {[%emt 0:00:02]} c5 {[%emt 0:02:00]} 2. e3 {[%emt 0:03:32]} Nf6 {[%emt 0:03:05]} 3. c4 {[%emt 0:00:30]} g6 {[%emt 0:00:24]} 4. d4 {[%emt 0:01:18]} cxd4 {[%emt 0:00:06]} 5. exd4 {[%emt 0:02:52]} d5 {[%emt 0:00:48]} 6. Nc3 {[%emt 0:01:44]} Bg7 {[%emt 0:00:50]} 7. Qb3 {[%emt 0:08:41]} O-O {[%emt 0:01:33]} 8. cxd5 {[%emt 0:02:30]} Nbd7 {[%emt 0:00:24]} 9. g3 {[%emt 0:04:19]} Nb6 {[%emt 0:00:16]} 10. Bg2 {[%emt 0:00:19]} Nbxd5 {[%emt 0:02:19]} 11. O-O {[%emt 0:01:29]} h6 {[%emt 0:01:51]} 12. Ne5 {[%emt 0:06:45]} e6 {[%emt 0:01:09]} 13. Rd1 {[%emt 0:03:28]} a5 {[%emt 0:14:56]} 14. a4 {[%emt 0:05:31]} b6 {[%emt 0:01:07]} 15. Nb5 {[%emt 0:07:49]} Bb7 {[%emt 0:02:07]} 16. Bd2 {[%emt 0:02:50]} Qe7 {[%emt 0:03:13]} 17. Qa3 {[%emt 0:03:24]} Qxa3 {[%emt 0:04:40]} 18. bxa3 {[%emt 0:00:32]} Rfd8 {[%emt 0:00:59]} 19. Rdc1 {[%emt 0:10:14]} Rac8 {[%emt 0:05:08]} 20. Nc4 {[%emt 0:01:47]} Rb8 {[%emt 0:01:12]} 21. Rab1 {[%emt 0:02:54]} Bf8 {[%emt 0:10:34]} 22. Rc2 {[%emt 0:03:51]} 1/2-1/2

[Event "Fagernes Chess GM-Swiss 2025"]
[Site "Fagernes"]
[Date "2025.04.17"]
[Round "6.26"]
[White "Kittilsen, Sigurd"]
[Black "Westrum, Kim Roger Hansen"]
[Result "0-1"]
[Annotator "RC"]
[ECO "B32"]
[WhiteElo "2010"]
[BlackElo "2193"]
[PlyCount "72"]
[EventDate "2025.04.12"]
[EventCountry "NOR"]
[SourceTitle "playchess.com"]
[Source "ChessBase"]
[SourceQuality "1"]
[TimeControl "40/6000+30:2400+30"]

1. e4 {[%emt 0:00:03]} c5 {[%emt 0:00:14]} 2. Nf3 {[%emt 0:00:17]} Nc6 {[%emt 0:00:11]} 3. d4 {[%emt 0:00:15]} cxd4 {[%emt 0:00:13]} 4. Nxd4 {[%emt 0:00:08]} e5 {[%emt 0:00:12]} 5. Nb5 {[%emt 0:03:08]} d6 {[%emt 0:00:12]} 6. N1c3 {[%emt 0:01:59]} a6 {[%emt 0:00:10]} 7. Na3 {[%emt 0:00:04]} Be7 {[%emt 0:00:28]} 8. Be3 {[%emt 0:08:16]} Nf6 {[%emt 0:01:32]} 9. Nc4 {[%emt 0:01:49]} b5 {[%emt 0:02:20]} 10. Nb6 {[%emt 0:05:41]} Rb8 {[%emt 0:00:19]} 11. Nxc8 {[%emt 0:02:16]} Qxc8 {[%emt 0:00:14]} 12. f3 {[%emt 0:05:59]} O-O {[%emt 0:03:39]} 13. Bd3 {[%emt 0:00:56]} b4 {[%emt 0:12:02]} 14. Nd5 {[%emt 0:04:08]} Nxd5 {[%emt 0:00:14]} 15. exd5 {[%emt 0:00:06]} Nd4 {[%emt 0:00:10]} 16. Bxd4 {[%emt 0:04:03]} exd4 {[%emt 0:00:30]} 17. O-O {[%emt 0:00:55]} Qc5 {[%emt 0:07:03]} 18. Qe2 {[%emt 0:03:25]} Bf6 {[%emt 0:07:06]} 19. Rfe1 {[%emt 0:09:21]} g6 {[%emt 0:01:58]} 20. a3 {[%emt 0:17:30]} b3 {[%emt 0:11:27]} 21. Kf1 {[%emt 0:10:24]} Bg5 {[%emt 0:22:07]} 22. cxb3 {[%emt 0:04:41]} Rxb3 {[%emt 0:00:09]} 23. Qe4 {[%emt 0:00:44]} Be3 {[%emt 0:02:04]} 24. Re2 {[%emt 0:05:02]} Qc8 {[%emt 0:05:16]} 25. Rae1 {[%emt 0:04:32]} f5 {[%emt 0:03:59]} 26. Qe7 {[%emt 0:02:07]} Rxd3 {[%emt 0:00:21]} 27. Qxd6 {[%emt 0:01:56]} f4 {[%emt 0:00:19]} 28. h4 {[%emt 0:01:46]} Rb3 {[%emt 0:03:02]} 29. Rc2 {[%emt 0:01:48]} Qxc2 {[%emt 0:02:39]} 30. Qe6+ {[%emt 0:00:12]} Rf7 {[%emt 0:00:09]} 31. Qe8+ {[%emt 0:00:55]} Kg7 {[%emt 0:00:06]} 32. Qe5+ {[%emt 0:00:19]} Rf6 {[%emt 0:00:06]} 33. Qe7+ {[%emt 0:01:05]} Kh6 {[%emt 0:00:07]} 34. Re2 {[%emt 0:00:42]} Qd1+ {[%emt 0:00:07]} 35. Re1 {[%emt 0:00:07]} Qd3+ {[%emt 0:00:06]} 36. Re2 {[%emt 0:00:04]} Rxb2 {[%emt 0:00:07]} 0-1

[Event "Fagernes Chess GM-Swiss 2025"]
[Site "Fagernes"]
[Date "2025.04.17"]
[Round "6.27"]
[White "Olsen, William Alexander"]
[Black "Den Roover, Nikolay Jorgensen"]
[Result "1-0"]
[Annotator "RC"]
[ECO "A43"]
[WhiteElo "2188"]
[BlackElo "2004"]
[PlyCount "43"]
[EventDate "2025.04.12"]
[EventCountry "NOR"]
[SourceTitle "playchess.com"]
[Source "ChessBase"]
[SourceQuality "1"]
[TimeControl "40/6000+30:2400+30"]

1. d4 {[%emt 0:00:05]} Nf6 {[%emt 0:00:13]} 2. Nf3 {[%emt 0:00:38]} c5 {[%emt 0:00:35]} 3. d5 {[%emt 0:00:39]} b5 {[%emt 0:00:20]} 4. e4 {[%emt 0:00:05]} Nxe4 {[%emt 0:13:00]} 5. Bd3 {[%emt 0:00:04]} Nf6 {[%emt 0:03:27]} 6. Bxb5 {[%emt 0:00:05]} Bb7 {[%emt 0:03:11]} 7. c4 {[%emt 0:00:10]} e6 {[%emt 0:03:33]} 8. Nc3 {[%emt 0:04:44]} a6 {[%emt 0:12:13]} 9. Ba4 {[%emt 0:00:10]} Qc7 {[%emt 0:01:45]} 10. Qb3 {[%emt 0:04:30]} exd5 {[%emt 0:05:30]} 11. O-O {[%emt 0:19:23]} d4 {[%emt 0:04:37]} 12. Bf4 {[%emt 0:04:31]} Qc8 {[%emt 0:05:00]} 13. Rfe1+ {[%emt 0:00:31]} Be7 {[%emt 0:00:14]} 14. Bd6 {[%emt 0:01:04]} Ng8 {[%emt 0:00:24]} 15. Nd5 {[%emt 0:09:23]} Bxd5 {[%emt 0:00:16]} 16. cxd5 {[%emt 0:00:10]} Kf8 {[%emt 0:01:21]} 17. Rxe7 {[%emt 0:01:45]} Nxe7 {[%emt 0:00:12]} 18. Re1 {[%emt 0:00:04]} h5 {[%emt 0:02:53]} 19. Rxe7 {[%emt 0:02:45]} Kg8 {[%emt 0:00:12]} 20. Ng5 {[%emt 0:01:49]} c4 {[%emt 0:06:18]} 21. Qb7 {[%emt 0:00:29]} Qxb7 {[%emt 0:02:01]} 22. Re8# {[%emt 0:00:09]} 1-0

[Event "Fagernes Chess GM-Swiss 2025"]
[Site "Fagernes"]
[Date "2025.04.17"]
[Round "6.28"]
[White "Hausken, Andreas Skrede"]
[Black "Verbin, Valentina"]
[Result "1/2-1/2"]
[Annotator "NA RC"]
[ECO "B22"]
[WhiteElo "2002"]
[BlackElo "2113"]
[PlyCount "120"]
[EventDate "2025.04.12"]
[EventCountry "NOR"]
[SourceTitle "playchess.com"]
[Source "ChessBase"]
[SourceQuality "1"]
[TimeControl "40/6000+30:2400+30"]

1. e4 {[%emt 0:06:07]} c5 {[%emt 0:00:32]} 2. Nf3 {[%emt 0:01:25]} e6 {[%emt 0:02:46]} 3. c3 {[%emt 0:01:39]} d5 {[%emt 0:01:10]} 4. exd5 {[%emt 0:00:06]} Qxd5 {[%emt 0:00:45]} 5. d4 {[%emt 0:00:18]} Nf6 {[%emt 0:00:09]} 6. Be3 {[%emt 0:02:55]} cxd4 {[%emt 0:03:03]} 7. cxd4 {[%emt 0:05:25]} Bb4+ {[%emt 0:01:04]} 8. Nc3 {[%emt 0:04:21]} O-O {[%emt 0:02:45]} 9. Bd3 {[%emt 0:06:19]} Bd7 {[%emt 0:09:09]} 10. O-O {[%emt 0:01:24]} Bxc3 {[%emt 0:00:57]} 11. bxc3 {[%emt 0:00:06]} Bb5 {[%emt 0:00:12]} 12. a4 {[%emt 0:09:17]} Bxd3 {[%emt 0:02:07]} 13. Qxd3 {[%emt 0:00:03]} Nc6 {[%emt 0:05:26]} 14. c4 {[%emt 0:03:56]} Qe4 {[%emt 0:07:26]} 15. Qc3 {[%emt 0:02:11]} b6 {[%emt 0:02:46]} 16. Nd2 {[%emt 0:03:56]} Qg6 {[%emt 0:10:35]} 17. f3 {[%emt 0:05:18]} Rac8 {[%emt 0:03:19]} 18. Rfd1 {[%emt 0:02:20]} Rfd8 {[%emt 0:08:33]} 19. Nb3 {[%emt 0:02:39]} a5 {[%emt 0:05:59]} 20. d5 {[%emt 0:02:39]} exd5 {[%emt 0:11:24]} 21. Bxb6 {[%emt 0:00:44]} Re8 {[%emt 0:01:11]} 22. Nxa5 {[%emt 0:12:06]} Re2 {[%emt 0:13:55]} 23. Bf2 {[%emt 0:00:58]} d4 {[%emt 0:04:03]} 24. Rxd4 {[%emt 0:01:35]} Nxd4 {[%emt 0:00:08]} 25. Qxd4 {[%emt 0:00:07]} Rce8 {[%emt 0:05:19]} 26. c5 {[%emt 0:05:15]} Nh5 {[%emt 0:06:15]} 27. Rf1 {[%emt 0:01:42]} Qg5 {[%emt 0:01:55]} 28. h4 {[%emt 0:00:21]} Qg6 {[%emt 0:00:38]} 29. c6 {[%emt 0:00:08]} Qc2 {[%emt 0:00:38]} 30. Nc4 {[%emt 0:01:30]} Ng3 {[%emt 0:00:31]} 31. Ne3 {[%emt 0:07:01]} R8xe3 {[%emt 0:00:45]} 32. Bxg3 {[%emt 0:00:25]} Qxc6 {[%emt 0:00:30]} 33. Rf2 {[%emt 0:01:00]} Re1+ {[%emt 0:00:28]} 34. Kh2 {[%emt 0:00:01]} h6 {[%emt 0:00:33]} 35. Rb2 {[%emt 0:00:49]} R1e2 {[%emt 0:00:31]} 36. a5 {[%emt 0:00:34]} Rxb2 {[%emt 0:00:27]} 37. Qxb2 {[%emt 0:00:01]} Qa8 {[%emt 0:00:31]} 38. Qb6 {[%emt 0:01:22]} Re6 {[%emt 0:00:12]} 39. Qb4 {[%emt 0:00:36]} Qa7 {[%emt 0:00:48]} 40. Qb8+ {[%emt 0:01:09]} Qxb8 {[%emt 0:00:05]} 41. Bxb8 {[%emt 0:40:04]} Kf8 {[%emt 0:02:27]} 42. g4 {[%emt 0:00:00]} Ke7 {[%emt 0:06:17]} 43. Bc7 {[%emt 0:00:00]} Kd7 {[%emt 0:01:57]} 44. Bb6 {[%emt 0:00:00]} Kc6 {[%emt 0:02:54]} 45. Kg3 {[%emt 0:00:00]} Kd5 {[%emt 0:00:57]} 46. Kf4 {[%emt 0:00:00]} Kc4 {[%emt 0:00:36]} 47. h5 {[%emt 0:00:00]} Kd3 {[%emt 0:03:33]} 48. Kg3 {[%emt 0:00:00]} Rc6 {[%emt 0:04:31]} 49. Kf4 {[%emt 0:00:00]} Rf6+ {[%emt 0:01:30]} 50. Kg3 {[%emt 0:00:00]} Rc6 {[%emt 0:16:24]} 51. Kf4 {[%emt 0:00:00]} Ke2 {[%emt 0:00:12]} 52. Bd4 {[%emt 0:00:00]} Rc4 {[%emt 0:00:52]} 53. Ke4 {[%emt 0:00:00]} Ra4 {[%emt 0:01:14]} 54. a6 {[%emt 0:00:00]} Rxa6 {[%emt 0:01:37]} 55. Bxg7 {[%emt 0:00:00]} Re6+ {[%emt 0:00:10]} 56. Kf4 {[%emt 0:00:00]} Kf2 {[%emt 0:00:59]} 57. g5 {[%emt 0:00:00]} hxg5+ {[%emt 0:00:38]} 58. Kxg5 {[%emt 0:00:00]} Kxf3 {[%emt 0:00:13]} 59. h6 {[%emt 0:00:00]} Rg6+ {[%emt 0:01:44]} 60. Kf5 {[%emt 0:00:00]} Rxh6 {[%emt 0:00:41]} 1/2-1/2

[Event "Fagernes Chess GM-Swiss 2025"]
[Site "Fagernes"]
[Date "2025.04.17"]
[Round "6.29"]
[White "Berget, Eirik"]
[Black "Lilliehook, Victor"]
[Result "1/2-1/2"]
[Annotator "NA RC"]
[ECO "B33"]
[WhiteElo "2041"]
[BlackElo "1993"]
[PlyCount "64"]
[EventDate "2025.04.12"]
[EventCountry "NOR"]
[SourceTitle "playchess.com"]
[Source "ChessBase"]
[SourceQuality "1"]
[TimeControl "40/6000+30:2400+30"]

1. e4 {[%emt 0:00:26]} c5 {[%emt 0:00:07]} 2. Nf3 {[%emt 0:00:11]} Nc6 {[%emt 0:00:04]} 3. d4 {[%emt 0:00:47]} cxd4 {[%emt 0:00:02]} 4. Nxd4 {[%emt 0:00:07]} Nf6 {[%emt 0:00:09]} 5. Nc3 {[%emt 0:00:32]} e5 {[%emt 0:00:01]} 6. Nxc6 {[%emt 0:02:13]} bxc6 {[%emt 0:00:18]} 7. Bd3 {[%emt 0:00:57]} Bb4 {[%emt 0:04:47]} 8. O-O {[%emt 0:05:44]} O-O {[%emt 0:01:44]} 9. Bg5 {[%emt 0:04:51]} Bxc3 {[%emt 0:09:19]} 10. bxc3 {[%emt 0:00:15]} d5 {[%emt 0:00:52]} 11. Qe2 {[%emt 0:07:17]} Re8 {[%emt 0:02:35]} 12. h3 {[%emt 0:02:38]} Qd6 {[%emt 0:07:47]} 13. Rad1 {[%emt 0:05:14]} Qe6 {[%emt 0:05:10]} 14. Bxf6 {[%emt 0:08:56]} Qxf6 {[%emt 0:02:23]} 15. c4 {[%emt 0:00:12]} d4 {[%emt 0:02:22]} 16. Qd2 {[%emt 0:00:33]} c5 {[%emt 0:14:34]} 17. f4 {[%emt 0:02:38]} exf4 {[%emt 0:06:59]} 18. Rxf4 {[%emt 0:03:30]} Qd6 {[%emt 0:00:53]} 19. Rdf1 {[%emt 0:11:22]} f6 {[%emt 0:00:47]} 20. Qe2 {[%emt 0:05:21]} Re5 {[%emt 0:03:55]} 21. Rb1 {[%emt 0:05:24]} Bd7 {[%emt 0:02:10]} 22. Rb3 {[%emt 0:01:28]} a5 {[%emt 0:03:59]} 23. Rf1 {[%emt 0:02:18]} a4 {[%emt 0:03:14]} 24. Rb2 {[%emt 0:01:16]} Bc6 {[%emt 0:02:12]} 25. Qf3 {[%emt 0:02:04]} Rae8 {[%emt 0:11:45]} 26. Qg3 {[%emt 0:00:58]} Qd7 {[%emt 0:01:47]} 27. Rxf6 {[%emt 0:06:12]} Bxe4 {[%emt 0:01:28]} 28. Bxe4 {[%emt 0:03:33]} Rxe4 {[%emt 0:00:10]} 29. Rf3 {[%emt 0:02:09]} Re3 {[%emt 0:04:14]} 30. Rb8 {[%emt 0:03:45]} Rxf3 {[%emt 0:02:34]} 31. Rxe8+ {[%emt 0:00:11]} Qxe8 {[%emt 0:00:04]} 32. Qxf3 {[%emt 0:00:13]} Qe1+ {[%emt 0:02:41]} 1/2-1/2

[Event "Fagernes Chess GM-Swiss 2025"]
[Site "Fagernes"]
[Date "2025.04.17"]
[Round "6.30"]
[White "Stromhaug, Kristoffer Wang"]
[Black "Ashwath Kaushik"]
[Result "1/2-1/2"]
[Annotator "NA RC"]
[ECO "B45"]
[WhiteElo "2020"]
[BlackElo "1958"]
[PlyCount "153"]
[EventDate "2025.04.12"]
[EventCountry "NOR"]
[SourceTitle "playchess.com"]
[Source "ChessBase"]
[SourceQuality "1"]
[TimeControl "40/6000+30:2400+30"]

1. e4 {[%emt 0:00:02]} c5 {[%emt 0:00:16]} 2. Nf3 {[%emt 0:00:05]} e6 {[%emt 0:00:11]} 3. d4 {[%emt 0:00:06]} cxd4 {[%emt 0:00:10]} 4. Nxd4 {[%emt 0:00:06]} Nf6 {[%emt 0:00:07]} 5. Nc3 {[%emt 0:00:08]} Nc6 {[%emt 0:00:05]} 6. Ndb5 {[%emt 0:02:49]} Bc5 {[%emt 0:00:18]} 7. Nd6+ {[%emt 0:07:11]} Ke7 {[%emt 0:00:17]} 8. Bf4 {[%emt 0:08:11]} e5 {[%emt 0:00:09]} 9. Nf5+ {[%emt 0:05:32]} Kf8 {[%emt 0:00:19]} 10. Be3 {[%emt 0:04:51]} Bb4 {[%emt 0:01:50]} 11. Bd2 {[%emt 0:24:12]} Bxc3 {[%emt 0:15:08]} 12. Bxc3 {[%emt 0:04:19]} d5 {[%emt 0:03:52]} 13. Ng3 {[%emt 0:05:54]} Be6 {[%emt 0:11:27]} 14. Bd3 {[%emt 0:05:10]} Qb6 {[%emt 0:11:00]} 15. Qc1 {[%emt 0:08:46]} d4 {[%emt 0:04:27]} 16. Bd2 {[%emt 0:01:36]} Nb4 {[%emt 0:01:26]} 17. b3 {[%emt 0:03:32]} Qc5 {[%emt 0:13:33]} 18. O-O {[%emt 0:05:33]} Nd7 {[%emt 0:04:57]} 19. f4 {[%emt 0:07:06]} f6 {[%emt 0:02:30]} 20. Qb2 {[%emt 0:01:04]} a5 {[%emt 0:07:31]} 21. Rac1 {[%emt 0:01:53]} Ke7 {[%emt 0:04:13]} 22. Kh1 {[%emt 0:01:56]} Rac8 {[%emt 0:05:57]} 23. Be2 {[%emt 0:02:33]} exf4 {[%emt 0:09:55]} 24. Bxf4 {[%emt 0:01:26]} Ne5 {[%emt 0:02:46]} 25. a3 {[%emt 0:01:04]} Nbc6 {[%emt 0:00:53]} 26. Bd2 {[%emt 0:02:27]} b5 {[%emt 0:03:06]} 27. b4 {[%emt 0:01:22]} axb4 {[%emt 0:00:06]} 28. Bxb4 {[%emt 0:00:40]} Nxb4 {[%emt 0:00:10]} 29. Qxb4 {[%emt 0:00:11]} Qxb4 {[%emt 0:01:39]} 30. axb4 {[%emt 0:00:01]} Nc4 {[%emt 0:03:39]} 31. Nf5+ {[%emt 0:03:28]} Bxf5 {[%emt 0:00:07]} 32. Rxf5 {[%emt 0:00:06]} Ne5 {[%emt 0:02:52]} 33. Bxb5 {[%emt 0:02:24]} Rb8 {[%emt 0:00:09]} 34. Bd3 {[%emt 0:00:19]} Rxb4 {[%emt 0:00:13]} 35. Rff1 {[%emt 0:00:35]} Rc8 {[%emt 0:01:07]} 36. Rb1 {[%emt 0:00:30]} Rxb1 {[%emt 0:00:38]} 37. Rxb1 {[%emt 0:00:08]} Rc3 {[%emt 0:00:34]} 38. Rd1 {[%emt 0:00:41]} Ng4 {[%emt 0:00:27]} 39. Kg1 {[%emt 0:00:56]} Ne3 {[%emt 0:00:15]} 40. Rc1 {[%emt 0:00:44]} Nxc2 {[%emt 0:01:40]} 41. Rxc2 {[%emt 0:02:09]} Rxd3 {[%emt 0:00:12]} 42. Rc7+ {[%emt 0:00:15]} Kf8 {[%emt 0:05:15]} 43. Rd7 {[%emt 0:04:27]} Rd2 {[%emt 0:02:31]} 44. Kf1 {[%emt 0:05:41]} h5 {[%emt 0:06:54]} 45. g3 {[%emt 0:05:25]} g5 {[%emt 0:13:28]} 46. h4 {[%emt 0:04:07]} gxh4 {[%emt 0:09:54]} 47. gxh4 {[%emt 0:00:18]} d3 {[%emt 0:00:10]} 48. Rd5 {[%emt 0:02:52]} Kf7 {[%emt 0:03:17]} 49. Rxh5 {[%emt 0:02:31]} Rh2 {[%emt 0:00:27]} 50. Ke1 {[%emt 0:00:34]} Re2+ {[%emt 0:02:25]} 51. Kd1 {[%emt 0:00:10]} Rxe4 {[%emt 0:00:53]} 52. Kd2 {[%emt 0:00:27]} Rd4 {[%emt 0:00:10]} 53. Rb5 {[%emt 0:01:16]} Kg6 {[%emt 0:00:53]} 54. h5+ {[%emt 0:00:29]} Kh6 {[%emt 0:00:29]} 55. Rf5 {[%emt 0:00:33]} Rd6 {[%emt 0:00:31]} 56. Ra5 {[%emt 0:00:15]} Rd7 {[%emt 0:00:13]} 57. Rb5 {[%emt 0:00:29]} Kg7 {[%emt 0:00:10]} 58. Ra5 {[%emt 0:00:17]} Kh7 {[%emt 0:01:08]} 59. Rf5 {[%emt 0:01:02]} Kg7 {[%emt 0:00:10]} 60. Ra5 {[%emt 0:00:11]} Kf7 {[%emt 0:00:19]} 61. Rb5 {[%emt 0:00:49]} Ke6 {[%emt 0:00:20]} 62. h6 {[%emt 0:01:13]} Kf7 {[%emt 0:01:09]} 63. h7 {[%emt 0:01:56]} Kg7 {[%emt 0:00:10]} 64. Rh5 {[%emt 0:00:18]} Rd8 {[%emt 0:00:50]} 65. Rh3 {[%emt 0:00:38]} Rh8 {[%emt 0:00:32]} 66. Kxd3 {[%emt 0:00:23]} Rxh7 {[%emt 0:00:16]} 67. Rxh7+ {[%emt 0:00:24]} Kxh7 {[%emt 0:00:09]} 68. Ke4 {[%emt 0:00:05]} Kg6 {[%emt 0:00:20]} 69. Kf4 {[%emt 0:00:05]} f5 {[%emt 0:00:01]} 70. Kf3 {[%emt 0:00:15]} Kg5 {[%emt 0:00:06]} 71. Kg3 {[%emt 0:00:06]} f4+ {[%emt 0:00:02]} 72. Kf3 {[%emt 0:00:18]} Kf5 {[%emt 0:00:08]} 73. Kf2 {[%emt 0:00:05]} Ke4 {[%emt 0:00:06]} 74. Ke2 {[%emt 0:00:06]} f3+ {[%emt 0:00:02]} 75. Kf2 {[%emt 0:00:14]} Kf4 {[%emt 0:00:06]} 76. Kf1 {[%emt 0:00:07]} Ke3 {[%emt 0:00:06]} 77. Ke1 {[%emt 0:00:05]} 1/2-1/2

[Event "Fagernes Chess GM-Swiss 2025"]
[Site "Fagernes"]
[Date "2025.04.17"]
[Round "6.31"]
[White "Arvola, Daniel"]
[Black "Gasland, Lukas Dominik"]
[Result "1-0"]
[Annotator "NA RC"]
[ECO "C78"]
[WhiteElo "2088"]
[BlackElo "1994"]
[PlyCount "103"]
[EventDate "2025.04.12"]
[EventCountry "NOR"]
[SourceTitle "playchess.com"]
[Source "ChessBase"]
[SourceQuality "1"]
[TimeControl "40/6000+30:2400+30"]

1. e4 {[%emt 0:00:04]} e5 {[%emt 0:03:39]} 2. Nf3 {[%emt 0:00:11]} Nc6 {[%emt 0:00:06]} 3. Bb5 {[%emt 0:00:08]} a6 {[%emt 0:00:53]} 4. Ba4 {[%emt 0:00:06]} Nf6 {[%emt 0:00:06]} 5. O-O {[%emt 0:00:34]} b5 {[%emt 0:00:20]} 6. Bb3 {[%emt 0:00:05]} Bc5 {[%emt 0:00:08]} 7. d3 {[%emt 0:00:50]} h6 {[%emt 0:07:32]} 8. c3 {[%emt 0:01:02]} d6 {[%emt 0:01:06]} 9. Nbd2 {[%emt 0:00:36]} O-O {[%emt 0:00:13]} 10. a4 {[%emt 0:01:23]} Rb8 {[%emt 0:00:21]} 11. h3 {[%emt 0:01:16]} Be6 {[%emt 0:07:48]} 12. Bc2 {[%emt 0:11:01]} Qd7 {[%emt 0:10:14]} 13. Nh2 {[%emt 0:15:58]} d5 {[%emt 0:06:46]} 14. axb5 {[%emt 0:05:51]} axb5 {[%emt 0:00:36]} 15. Qf3 {[%emt 0:01:29]} Nh7 {[%emt 0:08:56]} 16. Nb3 {[%emt 0:03:37]} Bb6 {[%emt 0:01:05]} 17. g4 {[%emt 0:03:02]} dxe4 {[%emt 0:09:45]} 18. dxe4 {[%emt 0:00:26]} Bc4 {[%emt 0:00:07]} 19. Rd1 {[%emt 0:02:03]} Qe6 {[%emt 0:00:07]} 20. Nd2 {[%emt 0:00:26]} Ng5 {[%emt 0:00:11]} 21. Qg3 {[%emt 0:12:21]} Qf6 {[%emt 0:04:52]} 22. Kg2 {[%emt 0:02:30]} Be2 {[%emt 0:08:10]} 23. Re1 {[%emt 0:04:30]} Nxh3 {[%emt 0:01:54]} 24. Rxe2 {[%emt 0:00:19]} Nf4+ {[%emt 0:00:07]} 25. Kf1 {[%emt 0:00:05]} Nxe2 {[%emt 0:00:05]} 26. Kxe2 {[%emt 0:00:10]} Rfd8 {[%emt 0:09:08]} 27. Ndf3 {[%emt 0:02:48]} Qe6 {[%emt 0:00:43]} 28. g5 {[%emt 0:05:22]} h5 {[%emt 0:00:52]} 29. Kf1 {[%emt 0:07:44]} b4 {[%emt 0:00:33]} 30. Nd2 {[%emt 0:01:57]} bxc3 {[%emt 0:03:45]} 31. bxc3 {[%emt 0:00:10]} g6 {[%emt 0:03:14]} 32. Kg2 {[%emt 0:02:05]} Bc5 {[%emt 0:03:10]} 33. Bd3 {[%emt 0:01:59]} Rd6 {[%emt 0:02:25]} 34. Bc4 {[%emt 0:01:31]} Qd7 {[%emt 0:00:52]} 35. Qf3 {[%emt 0:02:55]} Bb6 {[%emt 0:07:25]} 36. Bd5 {[%emt 0:06:48]} Na5 {[%emt 0:07:35]} 37. Ba3 {[%emt 0:01:28]} c5 {[%emt 0:00:37]} 38. Nhf1 {[%emt 0:01:45]} Qe7 {[%emt 0:00:20]} 39. Qg3 {[%emt 0:00:55]} Rd7 {[%emt 0:00:27]} 40. Nf3 {[%emt 0:01:36]} Bc7 {[%emt 0:01:07]} 41. Ne3 {[%emt 0:41:48]} Kg7 {[%emt 0:08:04]} 42. Ba2 {[%emt 0:00:00]} Bd6 {[%emt 0:14:48]} 43. Nd5 {[%emt 0:00:00]} Qd8 {[%emt 0:00:43]} 44. Nf6 {[%emt 0:00:00]} Ra7 {[%emt 0:01:06]} 45. Rd1 {[%emt 0:00:00]} Nc4 {[%emt 0:05:29]} 46. Bxc4 {[%emt 0:00:00]} Rxa3 {[%emt 0:00:09]} 47. Nh4 {[%emt 0:00:00]} Rb6 {[%emt 0:02:07]} 48. Rd5 {[%emt 0:00:00]} Kf8 {[%emt 0:02:33]} 49. Qd3 {[%emt 0:00:00]} Qc7 {[%emt 0:00:13]} 50. Nf3 {[%emt 0:00:00]} Ra7 {[%emt 0:00:50]} 51. Nxe5 {[%emt 0:00:43]} Bxe5 {[%emt 0:01:04]} 52. Rd8+ {[%emt 0:00:07]} 1-0

[Event "Fagernes Chess GM-Swiss 2025"]
[Site "Fagernes"]
[Date "2025.04.17"]
[Round "6.32"]
[White "Halvorsen, Benjamin"]
[Black "Kaewpitakkun, Pantham"]
[Result "1/2-1/2"]
[Annotator "NA RC"]
[ECO "B82"]
[WhiteElo "1966"]
[BlackElo "2026"]
[PlyCount "84"]
[EventDate "2025.04.12"]
[EventCountry "NOR"]
[SourceTitle "playchess.com"]
[Source "ChessBase"]
[SourceQuality "1"]
[TimeControl "40/6000+30:2400+30"]

1. e4 {[%emt 0:00:41]} c5 {[%emt 0:00:04]} 2. Nf3 {[%emt 0:00:41]} d6 {[%emt 0:00:05]} 3. d4 {[%emt 0:00:17]} cxd4 {[%emt 0:00:11]} 4. Nxd4 {[%emt 0:00:09]} Nf6 {[%emt 0:00:04]} 5. Nc3 {[%emt 0:00:06]} a6 {[%emt 0:00:06]} 6. f4 {[%emt 0:00:09]} e6 {[%emt 0:07:37]} 7. Qf3 {[%emt 0:01:18]} h5 {[%emt 0:03:01]} 8. h3 {[%emt 0:08:46]} Qc7 {[%emt 0:02:52]} 9. Be3 {[%emt 0:02:07]} Nbd7 {[%emt 0:02:16]} 10. Nb3 {[%emt 0:05:26]} b5 {[%emt 0:01:13]} 11. Bd3 {[%emt 0:02:51]} Bb7 {[%emt 0:02:39]} 12. O-O {[%emt 0:12:13]} Nc5 {[%emt 0:03:36]} 13. Nd2 {[%emt 0:20:48]} h4 {[%emt 0:05:45]} 14. a4 {[%emt 0:05:05]} b4 {[%emt 0:01:39]} 15. Ne2 {[%emt 0:01:34]} d5 {[%emt 0:02:18]} 16. Bxc5 {[%emt 0:00:30]} Bxc5+ {[%emt 0:04:11]} 17. Kh1 {[%emt 0:00:09]} dxe4 {[%emt 0:03:27]} 18. Nxe4 {[%emt 0:00:44]} O-O-O {[%emt 0:01:24]} 19. Bxa6 {[%emt 0:05:29]} Bxa6 {[%emt 0:07:58]} 20. Nxc5 {[%emt 0:00:23]} Qxc5 {[%emt 0:00:37]} 21. Qa8+ {[%emt 0:00:23]} Kc7 {[%emt 0:00:12]} 22. Qxa6 {[%emt 0:00:21]} Rd6 {[%emt 0:00:51]} 23. Qb5 {[%emt 0:01:15]} Qxb5 {[%emt 0:00:25]} 24. axb5 {[%emt 0:00:05]} Rd2 {[%emt 0:00:14]} 25. Rfe1 {[%emt 0:12:05]} Nh5 {[%emt 0:04:29]} 26. Kg1 {[%emt 0:02:44]} Kb7 {[%emt 0:15:10]} 27. c4 {[%emt 0:02:32]} bxc3 {[%emt 0:00:19]} 28. bxc3 {[%emt 0:00:22]} Rc8 {[%emt 0:00:35]} 29. Rad1 {[%emt 0:05:15]} Rb2 {[%emt 0:01:49]} 30. Rd7+ {[%emt 0:01:27]} Rc7 {[%emt 0:00:12]} 31. Rxc7+ {[%emt 0:00:21]} Kxc7 {[%emt 0:00:06]} 32. Kf1 {[%emt 0:06:20]} Rxb5 {[%emt 0:00:24]} 33. Kf2 {[%emt 0:01:02]} Rb3 {[%emt 0:04:09]} 34. Kf3 {[%emt 0:03:49]} Ng3 {[%emt 0:04:34]} 35. Rc1 {[%emt 0:03:13]} Nxe2 {[%emt 0:00:49]} 36. Kxe2 {[%emt 0:00:05]} Kc6 {[%emt 0:00:16]} 37. Rc2 {[%emt 0:02:22]} Ra3 {[%emt 0:04:28]} 38. Kd3 {[%emt 0:02:48]} Ra4 {[%emt 0:00:53]} 39. Rf2 {[%emt 0:00:50]} Kd5 {[%emt 0:01:32]} 40. Ke3 {[%emt 0:02:52]} Ra3 {[%emt 0:13:11]} 41. Kd3 {[%emt 0:02:36]} Ra4 {[%emt 0:00:19]} 42. Ke3 {[%emt 0:01:29]} Ra3 {[%emt 0:01:07]} 1/2-1/2